Cogmind - Beta 17.1 @@@ ROGUE MODE // 2026.08.31 @ 01:25:21 Player: Scuttle Result: Destroyed by P-70 Sage with High-powered Shock Rifle Performance ------------- Evolutions (6) 3000 Regions Visited (22) 4400 Robots Destroyed (340) 1700 Value Destroyed (13156) 13156 Prototype IDs (59) 1180 Alien Tech Used (0) 0 Bonus (2381) 2381 TOTAL SCORE: 25817 Bonus ------- High Alert Combat Kills 1340 Follower Combat Kills 1014 Entered Garrisons 200 Entered DSFs 500 Aligned with FarCom 300 Met Data Miner 300 MAIN.C Attacked Proxy Base 500 Friendly Fire -1773 Cogmind --------- Core Integrity 0/1150 Matter 279/300 Energy 145/150 System Corruption 43% Temperature Cool (0) Movement Treading (160) Location -4/Armory Parts ------- > --- POWER (3) -------- Micro Fission Core > --- PROPULSION (3) --- Enhanced Armored Medium Treads Enhanced Armored Medium Treads Enhanced Armored Medium Treads > --- UTILITY (10) ----- Improved Heat Sink Advanced Heat Sink Advanced Signal Interpreter Advanced Targeting Computer Core Analyzer Graphene Brace > --- WEAPON (3) ------- High-powered Shock Rifle High-powered Shotgun Coil Gun > --- INVENTORY (5) ---- Enhanced Armored Medium Treads Enhanced Armored Medium Treads Enhanced Armored Medium Treads Long-range Sensor Array Peak State ------------ > --- POWER ------------ Quantum Reactor Quantum Reactor Quantum Reactor > --- PROPULSION ------- Wheel Wheel Compact Wheel > --- UTILITY ---------- Advanced Heat Sink Advanced Coolant Injector Huge Storage Unit Advanced Signal Interpreter Advanced Targeting Computer Core Analyzer Advanced Powered Armor Advanced Powered Armor Graphene Brace Advanced EM Shield > --- WEAPON ----------- Advanced Plasma Rifle Advanced Plasma Rifle Enhanced Nova Cannon > --- INVENTORY -------- Quantum Reactor Quantum Reactor Quantum Reactor Advanced Coolant Injector Long-range Sensor Array Advanced Particle Charger Heavy Armor Plating Advanced Powered Armor Advanced Powered Armor Advanced Powered Armor Advanced Powered Armor Advanced Force Field Thermic Laser Firepult Hypervelocity Coil Gun Hypervelocity Coil Gun Hypervelocity Coil Gun Gamma Bomb Array [Rating: 125] Favorites ----------- Power Antimatter Reactor Engine Improved Deuterium Engine Power Core Micro Fission Core Reactor Antimatter Reactor Propulsion Armored Wheel Treads Enhanced Armored Medium Treads Wheel Armored Wheel Utility Core Analyzer Device Graphene Brace Storage Large Storage Unit Processor Core Analyzer Hackware Advanced Hacking Suite Protection Hardened Medium Armor Plating Weapon Precision Beam Rifle Energy Gun Precision Beam Rifle Energy Cannon Enhanced Nova Cannon Ballistic Gun Coil Gun Ballistic Cannon Hypervelocity Gauss Cannon Launcher Heavy Shock Bomb Launcher Special Weapon Improved Remote Datajack Impact Weapon Mace Slashing Weapon Blade Saw Build | -11 -10 -10 -10 -9 -8 -7 -7 -7 -7 -7 -7 -6 -6 -6 -6 -5 -5 -5 -4 -4 -4 -4 ------- Run | Yrd Mat Min Exi Min Mat Fac Was Fac Low Low Dat Pro Fac DSF Gar Fac Was Fac Fac Was Fac Arm Slots Evolved 12 | . . . . . 4 2 . . . . . . 2 . . 2 . . 2 . . . Power 2 | . . . . . . . . . . . . . 1 . . 1 . . . . . . Propulsion 1 | . . . . . 1 . . . . . . . . . . . . . . . . . Utility 8 | . . . . . 2 2 . . . . . . 1 . . 1 . . 2 . . . Weapon 1 | . . . . . 1 . . . . . . . . . . . . . . . . . Parts Attached 351 | 6 10 . 1 . 55 17 1 24 7 4 . 2 3 10 4 37 6 24 52 13 52 23 Power 59 | 1 2 . . . 8 2 . 3 . . . . 1 1 1 4 3 4 12 4 8 5 Engine 19 | 1 2 . . . 5 2 . 2 . . . . 1 1 . 3 . . 1 . 1 . Core 19 | . . . . . 3 . . 1 . . . . . . 1 1 . 3 8 . 1 1 Reactor 21 | . . . . . . . . . . . . . . . . . 3 1 3 4 6 4 Propulsion 60 | 3 4 . . . 11 3 . 6 1 1 . . . . . 9 . 5 7 . 7 3 Treads 3 | . . . . . . . . . . . . . . . . . . . . . . 3 Leg . | . . . . . . . . . . . . . . . . . . . . . . . Wheel 57 | 3 4 . . . 11 3 . 6 1 1 . . . . . 9 . 5 7 . 7 . Hover . | . . . . . . . . . . . . . . . . . . . . . . . Flight . | . . . . . . . . . . . . . . . . . . . . . . . Utility 125 | . 3 . 1 . 17 9 . 7 4 . . 1 2 6 . 14 1 7 20 6 16 11 Device 60 | . 2 . . . 4 4 . 2 3 . . . 1 3 . 6 . 4 12 5 9 5 Storage 8 | . . . 1 . 2 . . 2 . . . . . . . 1 . . . . 1 1 Processor 18 | . . . . . 1 1 . 1 1 . . . 1 1 . 5 . 2 4 . 1 . Hackware 3 | . . . . . . . . 1 . . . . . . . . . . 1 . 1 . Protection 36 | . 1 . . . 10 4 . 1 . . . 1 . 2 . 2 1 1 3 1 4 5 Artifact . | . . . . . . . . . . . . . . . . . . . . . . . Weapon 107 | 2 1 . . . 19 3 1 8 2 3 . 1 . 3 3 10 2 8 13 3 21 4 Energy Gun 38 | 1 1 . . . 10 . . 4 1 3 . . . 1 1 . . 1 2 1 10 2 Energy Cannon 12 | . . . . . . . 1 1 . . . . . 1 1 2 . 1 2 2 1 . Ballistic Gun 37 | 1 . . . . 6 3 . . . . . . . . . 2 . 5 8 . 10 2 Ballistic Cannon 9 | . . . . . . . . 1 . . . . . . . 6 2 . . . . . Launcher 5 | . . . . . 1 . . . 1 . . 1 . 1 . . . 1 . . . . Special Weapon 2 | . . . . . . . . 1 . . . . . . . . . . 1 . . . Impact Weapon 2 | . . . . . 1 . . 1 . . . . . . . . . . . . . . Slashing Weapon 2 | . . . . . 1 . . . . . . . . . 1 . . . . . . . Piercing Weapon . | . . . . . . . . . . . . . . . . . . . . . . . Special Melee Weapon . | . . . . . . . . . . . . . . . . . . . . . . . Unidentified Prototypes 19 | . . . . . 4 . 1 2 1 . . . . 1 . 1 1 . 5 . 2 1 Corrupted Parts 5 | . . . . . . . 1 . . . . . . 1 . . . . . . . 3 System Corruption 18 | . . . . . . . 6 . . . . . . 4 . . . . . . . 8 Parts Lost 70 | . . . . . 6 1 3 1 . . . 1 . 8 4 4 . 1 12 1 13 15 Power 7 | . . . . . . . . . . . . . . . . 1 . 1 2 . 2 1 Propulsion 19 | . . . . . 4 . 2 . . . . . . 2 1 1 . . 2 . 4 3 Utility 25 | . . . . . 2 1 . 1 . . . 1 . 3 2 1 . . 5 . 4 5 Weapon 19 | . . . . . . . 1 . . . . . . 3 1 1 . . 3 1 3 6 Highest Loss Streak 9 | . . . . . 2 1 3 1 . . . 1 . 6 2 2 . 1 9 1 6 3 To Critical Strikes 1 | . . . . . . . 1 . . . . . . . . . . . . . . . Average Backups 12 | 1 3 5 5 6 13 17 13 9 18 15 16 16 14 11 6 8 13 12 11 13 13 13 Power . | . 1 1 1 1 1 . . . 2 1 1 1 1 . . . . . . . . 1 Propulsion . | . . 1 1 1 . . . . 1 1 1 1 1 . . . 2 1 1 1 . . Utility 5 | . . 1 1 1 4 7 6 4 7 7 6 5 4 4 3 3 4 5 6 8 8 6 Weapon 5 | . 1 2 2 3 7 9 6 4 6 5 8 7 8 6 3 5 6 5 4 3 4 4 Tool/Special . | . . . . . . . . . . . . . . . . . . . . . . . Unused Backups 50 | . 3 . . . 5 . 10 2 5 1 . 1 . . . 4 . 5 5 . 1 8 Power 5 | . 1 . . . . . 1 . . . . 1 . . . . . . . . . 2 Propulsion 12 | . . . . . . . . 1 1 1 . . . . . 3 . 1 2 . . 3 Utility 20 | . . . . . 1 . 5 . 3 . . . . . . 1 . 3 3 . 1 3 Weapon 13 | . 2 . . . 4 . 4 1 1 . . . . . . . . 1 . . . . Tool/Special . | . . . . . . . . . . . . . . . . . . . . . . . Average Slot Usage (%) 89 | . 96 100 100 100 98 92 68 74 84 81 60 84 87 90 59 68 94 93 92 97 95 85 Engine 4 | . 14 14 14 14 5 7 4 2 7 6 7 7 13 13 8 2 3 . 1 . . 2 Core 2 | . . . . . 3 . . . . . . . . . . 5 4 5 7 5 . 2 Reactor 4 | . . . . . . . . . . . . . . . . . 7 10 4 9 14 7 Wheel 16 | . 28 28 28 28 26 15 10 18 15 13 15 15 13 11 3 13 17 17 14 15 13 9 Device 13 | . 12 14 14 14 9 14 14 15 7 7 12 15 15 17 7 5 5 7 16 26 21 19 Storage 5 | . . . 6 14 9 7 4 6 7 6 7 7 6 6 4 4 5 5 5 5 5 3 Processor 11 | . . . . . . 7 7 9 15 15 9 7 12 13 19 16 23 20 15 10 13 15 Protection 8 | . 11 14 7 . 17 14 9 3 7 7 7 7 6 7 4 4 5 5 5 8 8 8 Energy Gun 8 | . 14 14 14 14 13 6 4 9 22 23 . 21 20 17 9 . . 3 1 1 3 10 Ballistic Gun 7 | . 14 14 14 14 13 15 9 . . . . . . . . 1 . 8 12 9 8 . Ballistic Cannon 1 | . . . . . . . . 3 . . . . . . . 8 17 4 . . . . Peak Build Rating 125 | 5 8 8 11 11 36 49 52 42 54 52 52 56 66 73 50 74 88 90 107 115 105 125 Average Rating 62 | 4 7 8 9 11 27 47 36 30 49 48 41 53 62 65 38 54 79 84 95 95 95 99 On Entrance 44 | . 5 8 8 11 11 36 49 12 41 51 39 52 51 66 46 13 67 88 73 92 97 96 Avg Prop Armor Cover (%) 4 | . . . . . . . . . . . . . . . . . . . 2 . . 5 Naked Turns . | . . . . . . . . . . . . . . . . . . . . . . . Heaviest Build 198 | 8 14 14 31 31 77 80 69 77 82 78 78 85 83 101 87 90 113 121 113 115 117 198 Greatest Support 105 | 32 32 20 20 20 48 44 38 38 40 40 40 40 40 40 12 48 48 48 44 36 44 105 Greatest Overweight (x) 19 | . . . 1 1 3 2 1 2 2 5 1 2 2 8 7 4 2 3 8 3 7 19 Average Overweight (x) 1 | . . . . 1 1 1 . 1 1 1 1 1 1 3 2 1 1 2 1 2 2 4 Largest Inventory Capacity 25 | 5 5 5 15 15 20 20 20 20 20 20 20 20 20 20 20 15 15 15 15 15 15 25 Average Capacity 16 | 5 5 5 9 15 17 20 14 16 20 19 20 20 20 20 14 13 15 15 15 15 15 18 Most Carried 21 | 2 5 5 7 7 20 20 19 20 20 20 19 18 16 16 11 15 15 15 15 15 15 21 Average Carried 14 | 1 3 5 5 7 14 18 14 10 19 17 17 17 15 12 7 9 14 14 14 14 14 14 Final Capacity 20 | 5 5 5 15 15 20 20 5 20 20 20 20 20 20 20 5 15 15 15 15 15 15 5 Final Carried 20 | 1 5 5 7 7 20 18 5 20 20 19 14 17 15 10 5 15 15 15 15 15 15 4 Class Distribution -------------------- 27% | Scavenger-Tank 18% | Scavenger-Gunner 15% | Mutant 9% | Scavenger-Skirmisher 7% | Scavenger-Mutant 7% | Gunner 7% | Tank 6% | Skirmisher Dominant Class ---------------- Mutant | -10/Materials Mutant | -10/Mines Mutant | -10/Exiles Mutant | -9/Mines Scavenger-Tank | -8/Materials Tank | -7/Factory Tank | -7/Waste Mutant | -7/Factory Skirmisher | -7/Lower Caves Skirmisher | -7/Lower Caves Mutant | -7/Data Miner Gunner | -6/Proximity Caves Gunner | -6/Factory Gunner | -6/DSF Mutant | -6/Garrison Scavenger-Mutant | -5/Factory Scavenger-Skirmisher | -5/Waste Scavenger-Gunner | -5/Factory Scavenger-Gunner | -4/Factory Scavenger-Tank | -4/Waste Scavenger-Tank | -4/Factory Scavenger-Tank | -4/Armory Resources | -11 -10 -10 -10 -9 -8 -7 -7 -7 -7 -7 -7 -6 -6 -6 -6 -5 -5 -5 -4 -4 -4 -4 ----------- Run | Yrd Mat Min Exi Min Mat Fac Was Fac Low Low Dat Pro Fac DSF Gar Fac Was Fac Fac Was Fac Arm Matter Collected 12459 | 244 242 . . 58 1600 574 . 510 285 236 . 294 . 256 54 1753 198 974 1874 576 1719 1012 Remotely 343 | . . . . . . . . . . . . . . . . 343 . . . . . . Salvage Created 17498 | 71 420 . . 155 2635 751 . 514 202 . . 1394 . 882 130 2022 . 1148 2342 993 2225 1614 Parts 785 | 4 30 . . 8 145 36 . 28 4 . . 48 . 36 9 70 . 56 114 16 111 70 Haulers Intercepted 19 | . 1 . . . 4 1 . 1 1 . . . . . . 2 . 3 4 . 2 . Recyclers Shooed 14 | . 3 . . . 1 2 . 1 . . . . . . . 6 . 1 . . . . Parts Field Recycled . | . . . . . . . . . . . . . . . . . . . . . . . Retrieved Matter . | . . . . . . . . . . . . . . . . . . . . . . . Parts Self-Destructed 18 | . . . . . . . . . 2 . . 16 . . . . . . . . . . Prevented 81 | . . . . . . . . . 4 . . 77 . . . . . . . . . . Parts Restored . | . . . . . . . . . . . . . . . . . . . . . . . Kills | -11 -10 -10 -10 -9 -8 -7 -7 -7 -7 -7 -7 -6 -6 -6 -6 -5 -5 -5 -4 -4 -4 -4 ------- Run | Yrd Mat Min Exi Min Mat Fac Was Fac Low Low Dat Pro Fac DSF Gar Fac Was Fac Fac Was Fac Arm Combat Hostiles Destroyed 234 | . 6 . . 4 54 16 . 1 7 . . 21 . 16 6 15 . 13 28 3 21 23 Guns 153 | . 6 . . 4 46 15 . . . . . 3 . 4 3 2 . 11 26 . 16 17 Cannons 18 | . . . . . . . . 1 . . . . . 1 . 10 . 2 . . 4 . AOE 49 | . . . . . 8 1 . . 7 . . 12 . 11 3 3 . . . . . 4 Classes Destroyed 23 | 1 7 . . 1 5 2 . . . . . 2 . 2 1 . . . . 2 . . Worker 21 | . 1 . . . 6 1 . 1 . . . . . . . 4 . 2 3 . 3 . Builder 17 | . 1 . . 2 2 . . 3 . . . . . . . . . 2 1 . 6 . Tunneler 3 | . . . . . 1 . . 1 . . . . . . . . . . . . 1 . Hauler 19 | . 1 . . . 4 1 . 1 1 . . . . . . 2 . 3 4 . 2 . Recycler 25 | 1 1 . . . 4 2 . 4 . . . . . . . 9 . . 2 . 2 . Mechanic 2 | . 1 . . . 1 . . . . . . . . . . . . . . . . . Operator 3 | . . . . . 1 . . 1 . . . . . . . . . . . . 1 . Drone 1 | . . . . . . . . . . . . 1 . . . . . . . . . . Watcher 11 | . 1 . . . 3 . . . . . . . . . . 1 . 1 3 . . 2 Swarmer 41 | . 1 . . . 16 7 . . 2 . . 4 . . 3 . . . 8 . . . Cutter 3 | . . . . . . . . . . . . . . . 3 . . . . . . . Grunt 71 | . 5 . . 2 25 3 . . 5 . . 8 . 7 . 3 . 4 4 . 5 . Brawler 4 | . . . . . 1 . . . . . . . . . . 1 . . 2 . . . Duelist 7 | . . . . . . . . . . . . . . 1 . 2 . . 1 . . 3 Protector 1 | . . . . . . 1 . . . . . . . . . . . . . . . . Sentry 28 | . . . . . 10 3 . . . . . 1 . 1 . 4 . 1 . . 6 2 Specialist 17 | . . . . . 2 . . . . . . 2 . 6 . . . 3 2 . . 2 Hunter 16 | . . . . . . . . . . . . 2 . . . 2 . . 4 . 4 4 Programmer 39 | . . . . . . 2 . 1 . . . 3 . . . 3 . 5 7 . 6 12 Heavy 1 | . . . . . . . . . . . . . . 1 . . . . . . . . Compactor 3 | . . . . . . . . . . . . . . . . . . . . 3 . . Assembled 2 | . . . . 2 . . . . . . . . . . . . . . . . . . Wasp 2 | . . . . . . . . . . . . . . . . . . 2 . . . . Thug 2 | . . . . . . . . . . . . 1 . . . . . . . 1 . . Savage 1 | . . . . . . . . . . . . 1 . . . . . . . . . . Martyr 2 | . . . . . . . . . . . . . . . . . . . . 2 . . Best Kill Streak 12 | 1 2 . . 4 11 4 . 2 5 . . 12 . 12 3 11 . 3 8 2 5 5 Combat Bots Only 12 | . 2 . . 2 10 4 . 1 5 . . 12 . 12 3 7 . 2 5 2 3 5 Max Kills in Single Turn 3 | 1 1 . . 1 3 2 . 1 2 . . 3 . 3 3 3 . 2 2 2 2 2 Gunslinging 1 | . . . . . . 1 . . . . . . . 1 . . . . . . . . Exploded 3 | . . . . . 2 1 . . 2 . . 3 . 3 3 1 . . . . . 2 Melee . | . . . . . . . . . . . . . . . . . . . . . . . Uniques/NPCs Destroyed . | . . . . . . . . . . . . . . . . . . . . . . . Combat | -11 -10 -10 -10 -9 -8 -7 -7 -7 -7 -7 -7 -6 -6 -6 -6 -5 -5 -5 -4 -4 -4 -4 -------- Run | Yrd Mat Min Exi Min Mat Fac Was Fac Low Low Dat Pro Fac DSF Gar Fac Was Fac Fac Was Fac Arm Hostile Shots Fired 1985 | . 32 . . 12 191 189 3 8 5 9 . 92 . 121 25 114 . 92 314 1 315 462 Missed 575 | . 12 . . 2 54 68 . 1 3 2 . 39 . 33 7 27 . 24 88 . 78 137 Hits 1410 | . 20 . . 10 137 121 3 7 2 7 . 53 . 88 18 87 . 68 226 1 237 325 Melee 46 | . . . . . . . 3 . . 7 . . . 4 4 4 . . 11 1 . 12 Projectile 1364 | . 20 . . 10 137 121 . 7 2 . . 53 . 84 14 83 . 68 215 . 237 313 AOE 5 | . . . . . . 1 . . . . . . . . 3 1 . . . . . . Critical Strikes 57 | . . . . . 4 1 2 1 . . . 1 . 5 1 6 . 6 6 1 9 14 Actively Blocked 22 | . . . . . . . . . . . . . . . . . . . 3 1 4 14 Part Disruptions 7 | . . . . . . . . . . . . . . 1 . . . . 6 . . . Damage Taken 22037 | . 220 . . 132 1863 1510 127 105 68 27 . 696 . 1856 384 1865 . 1116 3297 70 3401 5300 Core 2238 | . 85 . . 66 156 118 8 45 . . . 86 . 221 144 108 . 47 287 51 244 572 Absorbed by Shields 2135 | . . . . . . . . . . . . . . . . 223 . 522 1161 . 205 24 Ignored by Resistances 1044 | . . . . . . . . . . . . . . 95 . . . 451 . . 166 332 Regen/Repaired (Parts) 1000 | . . . . . 46 . . . . . . 46 . . . 8 688 33 . 150 . 29 Core Remaining (%) 69 | 100 . . . 39 71 . . . . . . 63 . . 57 . . 84 . . . . Volleys Fired 909 | 1 42 . . 15 154 45 13 24 21 4 . 29 . 34 6 85 . 57 119 44 118 98 Largest 3 | 2 2 . . 2 3 3 3 3 3 3 . 3 . 3 2 3 . 3 3 3 3 3 Hottest 296 | 60 85 . . 85 186 136 133 140 140 183 . 183 . 183 250 153 . 160 153 250 261 296 Shots Fired 2040 | 2 82 . . 30 416 131 33 32 29 11 . 48 . 69 12 142 . 155 296 72 297 183 Gun 1695 | 2 82 . . 30 406 130 31 18 16 11 . 30 . 53 11 35 . 131 271 27 258 153 Cannon 291 | . . . . . . . . 14 4 . . . . 6 1 104 . 24 24 45 39 30 Launcher 53 | . . . . . 10 1 2 . 9 . . 18 . 10 . 3 . . . . . . Special 1 | . . . . . . . . . . . . . . . . . . . 1 . . . Kinetic 1073 | 1 42 . . 15 196 88 21 14 . . . . . . . 125 . 103 245 27 161 35 Thermal 826 | 1 40 . . 15 210 42 10 1 4 11 . 30 . 21 12 14 . 52 50 45 136 132 Explosive 35 | . . . . . 10 1 2 . 9 . . . . 10 . 3 . . . . . . Electromagnetic 105 | . . . . . . . . 17 16 . . 18 . 38 . . . . . . . 16 Robot Hit Streak 43 | 2 11 . . 11 14 25 20 10 9 5 . 31 . 43 6 18 . 16 18 10 36 18 Robot Miss Streak 6 | . 4 . . 1 6 4 2 1 2 1 . . . 2 1 6 . 5 4 2 5 4 Penetration Max 2 | . . . . . 1 1 . . . . . . . . . 1 . . 2 . 1 . Secondary Targets 27 | . . . . . 4 4 . . . . . 2 . 2 1 . . 2 8 . . 4 Max Gunslinging Chain 1 | . . . . . 1 1 . . . . . 1 . 1 1 . . 1 1 . . 1 Capacitor 4 | . . . . . . . . . . . . . . . . . . . . 4 . . Shots Hit Robots 1298 | 2 49 . . 26 245 102 27 24 15 9 . 26 . 56 8 95 . 97 178 32 199 108 Core Hits 772 | 2 18 . . 11 125 58 7 14 22 2 . 38 . 48 10 91 . 60 110 15 87 54 Critical Kills 33 | . . . . . 2 . . . . . . . . . . 17 . 2 3 1 5 3 Critical Parts Destroyed 45 | . . . . . 3 1 . . . . . . . . . 13 . 3 9 . 10 6 Critical Strikes 112 | . . . . . 16 1 1 1 . . . 3 . . . 31 . 5 12 1 24 17 Burn 28 | . . . . . 11 . . . . . . 3 . . . . . . . . 6 8 Meltdown 1 | . . . . . . . . . . . . . . . . . . . . 1 . . Destroy 82 | . . . . . 5 1 1 . . . . . . . . 31 . 5 12 . 18 9 Blast 1 | . . . . . . . . 1 . . . . . . . . . . . . . . Melee Attacks 10 | . . . . . 5 . . 5 . . . . . . . . . . . . . . Impact 9 | . . . . . 4 . . 5 . . . . . . . . . . . . . . Slashing 1 | . . . . . 1 . . . . . . . . . . . . . . . . . Piercing . | . . . . . . . . . . . . . . . . . . . . . . . Sneak Attacks 1 | . . . . . . . . 1 . . . . . . . . . . . . . . Combat Hostiles . | . . . . . . . . . . . . . . . . . . . . . . . Follow-up Attacks . | . . . . . . . . . . . . . . . . . . . . . . . Damage Inflicted 33863 | 22 646 . . 359 5043 2110 587 524 1005 152 . 2310 . 2695 294 2509 . 2328 4832 1245 4197 3005 Guns 23081 | 22 646 . . 359 4018 2110 587 230 224 152 . 444 . 654 155 719 . 2116 4286 306 3535 2518 Cannons 3451 | . . . . . . . . 250 . . . . . 98 33 1248 . 199 . 777 662 184 Explosions 7256 | . . . . . 1025 . . . 781 . . 1866 . 1943 106 542 . . 528 162 . 303 Melee 44 | . . . . . . . . 44 . . . . . . . . . . . . . . Ramming 31 | . . . . . . . . . . . . . . . . . . 13 18 . . . Kinetic 13111 | 11 331 . . 170 2006 1083 300 250 . . . . . . . 1657 . 1349 3693 306 1757 198 Thermal 13457 | 11 315 . . 189 2012 1027 287 14 37 152 . 891 . 534 294 310 . 966 653 939 2440 2386 Explosive 4169 | . . . . . 1025 . . . 744 . . . . 1711 . 542 . . . . . 147 Electromagnetic 3051 | . . . . . . . . 216 224 . . 1419 . 450 . . . . 468 . . 274 Impact 44 | . . . . . . . . 44 . . . . . . . . . . . . . . Slashing . | . . . . . . . . . . . . . . . . . . . . . . . Piercing . | . . . . . . . . . . . . . . . . . . . . . . . Highest Corruption 43 | . . . . . . . 16 16 16 6 6 7 . 5 5 10 10 13 14 14 19 43 Average Corruption 11 | . . . . . . . 12 16 14 6 6 6 . 1 5 8 10 10 6 14 14 22 Corruption Purged 15 | . . . . . . . . . 10 . . . . . . . . . . . 5 . Corruption Blocked . | . . . . . . . . . . . . . . . . . . . . . . . Effects 446 | . . . . . . . 12 33 26 11 2 22 . 3 5 32 19 59 30 40 70 82 Message Errors 98 | . . . . . . . 2 10 8 3 . 6 . . . 5 3 12 9 5 15 20 Matter Fused 101 | . . . . . . . 2 11 5 2 . 6 . 2 2 9 5 12 6 7 11 21 Heat Flow Errors 37 | . . . . . . . 3 2 2 . 1 6 . . . 1 2 6 . 2 7 5 Energy Discharges 51 | . . . . . . . 2 2 3 2 1 1 . . . 3 3 7 4 4 11 8 Parts Rejected 9 | . . . . . . . . . . . . . . 1 . 4 . . 2 2 . . Parts Fused 3 | . . . . . . . . 1 . . . . . . . 1 . . . . 1 . Data Loss (minor) 51 | . . . . . . . 1 4 4 3 . 1 . . 2 4 5 6 1 7 6 7 Data Loss (major) 27 | . . . . . . . . 2 2 . . . . . . 4 1 5 2 4 4 3 Misfires 21 | . . . . . . . . . 1 . . . . . 1 . . 6 2 5 4 2 Alerts 7 | . . . . . . . . . . 1 . 1 . . . 1 . 2 . . . 2 Misdirections 6 | . . . . . . . 1 . . . . . . . . . . . 2 1 2 . Weapon Failures 35 | . . . . . . . 1 1 1 . . 1 . . . . . 3 2 3 9 14 Overload Shots . | . . . . . . . . . . . . . . . . . . . . . . . Overflow Damage 212 | . . . . . 23 . . 4 3 . . 79 . 29 . 26 . 11 3 14 20 . Projectiles 74 | . . . . . . . . . . . . . . 5 . 24 . 11 . 14 20 . Explosions 131 | . . . . . 23 . . . 3 . . 79 . 24 . 2 . . . . . . Melee 7 | . . . . . . . . 4 . . . . . . . . . . 3 . . . Knockbacks 10 | . . . . . . . . 3 . . . . . . . 5 . 2 . . . . Impact . | . . . . . . . . . . . . . . . . . . . . . . . Kinetic 10 | . . . . . . . . 3 . . . . . . . 5 . 2 . . . . Secondary . | . . . . . . . . . . . . . . . . . . . . . . . Self-Inflicted Damage 555 | . . . . . 43 . . . 42 . . . . 190 29 33 . 6 136 19 . 57 Shots 17 | . . . . . 1 . . . 1 . . . . 5 2 1 . . 4 2 . 1 Rammed 4 | . . . . . . . . . . . . . . . . 1 . 2 1 . . . Targets Rammed 4 | . . . . . . . . . . . . . . . . 1 . 2 1 . . . Kicked . | . . . . . . . . . . . . . . . . . . . . . . . Crushed . | . . . . . . . . . . . . . . . . . . . . . . . Highest Temperature 451 | . 30 . . 23 451 224 200 253 188 319 89 397 . 375 234 382 233 357 224 407 271 278 Average Temperature 94 | . 8 . . 11 94 93 110 55 65 172 56 138 . 83 101 127 115 102 41 103 77 104 Received Heat Transfer 2976 | . 102 . . 57 783 474 . . 9 . . 282 . 432 36 75 . 92 14 . 319 301 Effects 18 | . . . . . 7 . . . . . . . . 1 . 2 . 2 2 2 . 2 Shutdowns 1 | . . . . . . . . . . . . . . 1 . . . . . . . . Energy Bleed 5 | . . . . . 1 . . . . . . . . . . 1 . 1 2 . . . Interference 8 | . . . . . 5 . . . . . . . . . . . . . . 1 . 2 Matter Decay 3 | . . . . . 1 . . . . . . . . . . . . 1 . 1 . . Damage (minor) 1 | . . . . . . . . . . . . . . . . 1 . . . . . . Siege Activations . | . . . . . . . . . . . . . . . . . . . . . . . Martial Activations . | . . . . . . . . . . . . . . . . . . . . . . . Shielding Activations . | . . . . . . . . . . . . . . . . . . . . . . . Robots Disrupted 2 | . . . . . . . . . . . . . . . . . . . 2 . . . Combat Hostiles 2 | . . . . . . . . . . . . . . . . . . . 2 . . . Robots Corrupted 9 | . . . . . . . . 1 . . . 5 . . . . . . 2 . . 1 Combat Hostiles 8 | . . . . . . . . . . . . 5 . . . . . . 2 . . 1 Parts Fried 14 | . . . . . . . . 4 . . . 4 . 4 . . . . 1 . . 1 Impact Corruptions 2 | . . . . . . . . 1 . . . . . . . . . . 1 . . . Robots Melted 7 | . . . . . . . . . . . . 1 . . . . . . . 4 1 1 Combat Hostiles 6 | . . . . . . . . . . . . 1 . . . . . . . 3 1 1 Parts Melted 86 | . . . . . 8 3 . . . . . 6 . . 1 . . 10 2 11 18 27 Heat Transferred 27740 | 25 733 . . 444 5618 1905 650 37 50 333 . 1634 . 744 893 387 . 2075 1158 1915 3978 5161 Parts Sabotaged . | . . . . . . . . . . . . . . . . . . . . . . . Parts Stolen 4 | . . . . . . . . . . 4 . . . . . . . . . . . . Parts Stripped . | . . . . . . . . . . . . . . . . . . . . . . . Power Chain Reactions 10 | . . . . . . . . . 1 . . 5 . 2 . . . . 2 . . . Alert | -11 -10 -10 -10 -9 -8 -7 -7 -7 -7 -7 -7 -6 -6 -6 -6 -5 -5 -5 -4 -4 -4 -4 ------- Run | Yrd Mat Min Exi Min Mat Fac Was Fac Low Low Dat Pro Fac DSF Gar Fac Was Fac Fac Was Fac Arm Maximum Alert Level 4 | . . . . . 4 2 1 . . . . . 2 3 2 2 . 4 2 1 1 1 Low Security (%) 51 | 100 100 100 . 100 21 . 53 100 . . . . . . . 10 100 15 50 95 82 82 Level 1 18 | . . . . . 20 . 46 . . . . . 31 39 . 88 . 1 17 4 17 17 Level 2 17 | . . . . . 27 100 . . . . . . 68 41 100 1 . 10 32 . . . Level 3 10 | . . . . . 14 . . . . . . . . 18 . . . 68 . . . . Level 4 2 | . . . . . 15 . . . . . . . . . . . . 2 . . . . Level 5 . | . . . . . . . . . . . . . . . . . . . . . . . High Security . | . . . . . . . . . . . . . . . . . . . . . . . Max Security . | . . . . . . . . . . . . . . . . . . . . . . . Sterilizations 2 | . . . . . 1 . . . . . . . . 1 . . . . . . . . Peak Influence 1226 | 5 50 . . 60 1226 686 235 87 . . . . 424 708 661 404 133 1121 601 216 312 242 Initial 546 | . . . . . 11 542 235 80 . . . . 424 272 531 341 133 . 546 208 . 151 Average 311 | 1 15 . . 25 544 581 182 16 . . . . 406 462 567 252 33 787 281 65 123 141 Influence Increases 9455 | 5 216 . . 90 1727 509 10 135 145 . . 435 305 516 160 525 . 1841 1026 72 979 759 Destroy 0b10 Robot/C 5080 | . 120 . . 40 1080 300 . 20 140 . . 400 . 320 120 300 . 700 560 . 520 460 Destroy 0b10 Robot/NC 575 | 5 30 . . 10 110 25 . 55 5 . . 10 . 15 . 80 . 75 65 . 80 10 Destroy Leader 1102 | . 14 . . 10 274 72 . 12 . . . 10 . 40 10 76 . 192 104 . 164 124 Allied During Kill 614 | . . . . . . . . . . . . . . . . . . 558 . . 56 . Successful Hack 160 | . 21 . . . 31 47 . 15 . . . . 5 . . . . 19 13 . . 9 Disable Machine 405 | . . . . . 75 . . 30 . . . . . . . 45 . 15 165 . 30 45 Destroy Structure 724 | . 1 . . . 97 5 10 3 . . . . . 66 . 24 . 222 74 72 84 66 Advance Influence 300 | . . . . . . . . . . . . . 300 . . . . . . . . . Partial Spotted 30 | . . . . . . 15 . . . . . . . . . . . . . . . 15 Lose Combat Pursuer 465 | . 30 . . 30 60 45 . . . . . 15 . 75 30 . . 60 45 . 45 30 Influence Decreases 9217 | 5 213 3 . 60 564 1029 568 250 136 9 . 237 114 197 217 796 380 724 1547 668 669 831 Entered New Map 3191 | . . 3 . . 19 651 438 35 . 2 . . 74 117 177 310 247 . 571 388 . 159 Time Decay 4636 | 5 213 . . 60 485 368 100 215 136 7 . 227 40 . . 446 133 434 556 250 439 522 Lost Part 690 | . . . . . 60 10 30 . . . . 10 . 80 40 40 . 10 120 10 130 150 Lost Ally 400 | . . . . . . . . . . . . . . . . . . 280 . 20 100 . Purge Threat 300 | . . . . . . . . . . . . . . . . . . . 300 . . . Squads Dispatched 67 | . 1 . . . 12 7 . 2 . . . . . 2 . 6 . 20 7 . 4 6 Investigation 4 | . 1 . . . 2 . . . . . . . . . . . . . . . 1 . Extermination 18 | . . . . . . 1 . 1 . . . . . . . 3 . 4 3 . 2 4 Reinforcement 29 | . . . . . 8 1 . 1 . . . . . 2 . . . 10 4 . 1 2 Assault 5 | . . . . . 1 2 . . . . . . . . . . . 2 . . . . Garrison 11 | . . . . . 1 3 . . . . . . . . . 3 . 4 . . . . Intercept . | . . . . . . . . . . . . . . . . . . . . . . . Searches Triggered . | . . . . . . . . . . . . . . . . . . . . . . . Data Miner Redirects 1 | . . . . . . . . . . . . . . . . . . 1 . . . . Construction Impeded 3 | . . . . . 2 . . . . . . . . . . . . 1 . . . . Haulers Reinforced 4 | . . . . . . 1 . . . . . . . . . . . 2 1 . . . Active Scanning Responses . | . . . . . . . . . . . . . . . . . . . . . . . Cargo Convoy Interrupts 1 | . . . . . . . . . . . . . . . . . . 1 . . . . Stealth | -11 -10 -10 -10 -9 -8 -7 -7 -7 -7 -7 -7 -6 -6 -6 -6 -5 -5 -5 -4 -4 -4 -4 --------- Run | Yrd Mat Min Exi Min Mat Fac Was Fac Low Low Dat Pro Fac DSF Gar Fac Was Fac Fac Was Fac Arm Distress Signals 14 | . . . . 2 4 . . . . . . 1 . . . 3 . 3 1 . . . Communications Jammed 44 | . . . . . . . . . . . . . . . . . . . 8 . 35 1 Distress Signals 43 | . . . . . . . . . . . . . . . . . . . 7 . 35 1 Times Spotted 387 | . 11 . . 8 78 26 6 3 9 4 . 34 . 21 10 28 . 35 42 8 34 30 Peak Tracking Total 11 | . 3 . . 3 6 9 5 1 5 4 . 11 . 6 7 7 . 5 6 3 4 5 Tactical Retreats 25 | . 1 . . 1 3 2 . . . . . 1 . 5 1 . . 3 3 1 2 2 Traps | -11 -10 -10 -10 -9 -8 -7 -7 -7 -7 -7 -7 -6 -6 -6 -6 -5 -5 -5 -4 -4 -4 -4 ------- Run | Yrd Mat Min Exi Min Mat Fac Was Fac Low Low Dat Pro Fac DSF Gar Fac Was Fac Fac Was Fac Arm Traps Triggered 23 | . 1 . . . 5 2 . . . . . . . . . 3 . 1 6 . 3 2 Indirectly 1 | . . . . . . . . . . . . . . . . . . . 1 . . . Trap Hack Attempts . | . . . . . . . . . . . . . . . . . . . . . . . Triggered . | . . . . . . . . . . . . . . . . . . . . . . . Disarmed . | . . . . . . . . . . . . . . . . . . . . . . . Reprogrammed . | . . . . . . . . . . . . . . . . . . . . . . . Reused . | . . . . . . . . . . . . . . . . . . . . . . . Traps Extracted . | . . . . . . . . . . . . . . . . . . . . . . . Installed . | . . . . . . . . . . . . . . . . . . . . . . . Triggered . | . . . . . . . . . . . . . . . . . . . . . . . Machines | -11 -10 -10 -10 -9 -8 -7 -7 -7 -7 -7 -7 -6 -6 -6 -6 -5 -5 -5 -4 -4 -4 -4 ---------- Run | Yrd Mat Min Exi Min Mat Fac Was Fac Low Low Dat Pro Fac DSF Gar Fac Was Fac Fac Was Fac Arm Machines Disabled 33 | . . . . . 7 . . 2 . . . . . . . 3 . 1 11 . 6 3 Max in Single Turn 4 | . . . . . 1 . . 1 . . . . . . . 1 . . 4 . 1 1 Garrison Access 3 | . . . . . 1 . . 1 . . . . . . . . . . 1 . . . Machines Repaired . | . . . . . . . . . . . . . . . . . . . . . . . Machines Dismantled . | . . . . . . . . . . . . . . . . . . . . . . . Machines Sabotaged . | . . . . . . . . . . . . . . . . . . . . . . . Overloaded Fab Kills . | . . . . . . . . . . . . . . . . . . . . . . . Hacking | -11 -10 -10 -10 -9 -8 -7 -7 -7 -7 -7 -7 -6 -6 -6 -6 -5 -5 -5 -4 -4 -4 -4 --------- Run | Yrd Mat Min Exi Min Mat Fac Was Fac Low Low Dat Pro Fac DSF Gar Fac Was Fac Fac Was Fac Arm Machines Accessed 54 | . 6 . 2 . 9 6 . 5 . . 3 2 2 . . 3 . 7 5 . 1 3 Terminals 30 | . 6 . . . 5 5 . 3 . . . 1 1 . . 1 . 4 3 . . 1 Fabricators 2 | . . . . . . . . . . . . . . . . . . . . . 1 1 Repair Stations 7 | . . . . . 2 . . . . . . . 1 . . 1 . 1 1 . . 1 Recycling Units 2 | . . . . . . . . . . . . 1 . . . 1 . . . . . . Scanalyzers 3 | . . . . . 1 1 . 1 . . . . . . . . . . . . . . Garrison Access 5 | . . . . . 1 . . 1 . . . . . . . . . 2 1 . . . Total Hacks 148 | . 18 . 2 . 22 12 . 12 . . 25 5 2 . . 5 . 11 17 . 2 15 Successful 87 | . 8 . 2 . 12 6 . 8 . . 25 2 1 . . 4 . 2 9 . 2 6 Failed 60 | . 9 . . . 10 6 . 4 . . . 3 1 . . 1 . 9 8 . . 9 Catastrophic 18 | . 1 . . . 2 2 . 1 . . . . . . . 1 . 6 3 . . 2 Database Lockouts 1 | . 1 . . . . . . . . . . . . . . . . . . . . . Manual 37 | . 11 . 1 . 5 2 . 1 . . . . . . . . . 2 12 . . 3 Terminals 74 | . 18 . . . 11 10 . 5 . . . 1 1 . . 1 . 6 13 . . 8 Fabricators 5 | . . . . . . . . . . . . . . . . . . . . . 2 3 Repair Stations 18 | . . . . . 6 . . . . . . . 1 . . 2 . 2 3 . . 4 Recycling Units 6 | . . . . . . . . . . . . 4 . . . 2 . . . . . . Scanalyzers 11 | . . . . . 3 2 . 6 . . . . . . . . . . . . . . Garrison Access 7 | . . . . . 2 . . 1 . . . . . . . . . 3 1 . . . Terminal Hacks 52 | . 6 . 2 . 2 5 . 2 . . 25 1 1 . . . . 1 6 . . 1 Record 7 | . . . 1 . . . . . . . 6 . . . . . . . . . . . Part Schematic 11 | . . . . . . . . 1 . . 10 . . . . . . . . . . . Robot Schematic 6 | . . . . . . . . . . . 6 . . . . . . . . . . . Robot Analysis 1 | . 1 . . . . . . . . . . . . . . . . . . . . . Prototype ID Bank 6 | . . . . . 2 1 . . . . 3 . . . . . . . . . . . Open Door 1 | . . . . . . . . . . . . 1 . . . . . . . . . . Open DSF 2 | . . . . . . 1 . . . . . . 1 . . . . . . . . . Branch Access Points 2 | . . . . . . . . . . . . . . . . . . 1 1 . . . Alert Level 1 | . . . . . . 1 . . . . . . . . . . . . . . . . Unreport Threat 2 | . . . . . . . . . . . . . . . . . . . 2 . . . Locate Traps 7 | . 3 . . . . . . 1 . . . . . . . . . . 3 . . . Hauler Manifests 2 | . 1 . . . . 1 . . . . . . . . . . . . . . . . Registered Components 1 | . 1 . . . . . . . . . . . . . . . . . . . . . Zone Layout 2 | . . . . . . 1 . . . . . . . . . . . . . . . 1 Proto ID Catalog 1 | . . . 1 . . . . . . . . . . . . . . . . . . . Fabricator Hacks 3 | . . . . . . . . . . . . . . . . . . . . . 2 1 Load Schematic 2 | . . . . . . . . . . . . . . . . . . . . . 1 1 Build 1 | . . . . . . . . . . . . . . . . . . . . . 1 . Repair Station Hacks 11 | . . . . . 4 . . . . . . . . . . 2 . 1 1 . . 3 Scan Component 7 | . . . . . 2 . . . . . . . . . . 1 . 1 1 . . 2 Repair 4 | . . . . . 2 . . . . . . . . . . 1 . . . . . 1 Recycling Unit Hacks 3 | . . . . . . . . . . . . 1 . . . 2 . . . . . . Retrieve Components 3 | . . . . . . . . . . . . 1 . . . 2 . . . . . . Scanalyzer 8 | . . . . . 2 1 . 5 . . . . . . . . . . . . . . Insert Component 2 | . . . . . 1 . . 1 . . . . . . . . . . . . . . Analyze 1 | . . . . . . . . 1 . . . . . . . . . . . . . . Retrieve Study 5 | . . . . . 1 1 . 3 . . . . . . . . . . . . . . Garrison Access Hacks 3 | . . . . . 1 . . 1 . . . . . . . . . . 1 . . . Seal Access 3 | . . . . . 1 . . 1 . . . . . . . . . . 1 . . . Unauthorized Hacks 7 | . 2 . . . 3 . . . . . . . . . . . . . 1 . . 1 Terminals 7 | . 2 . . . 3 . . . . . . . . . . . . . 1 . . 1 Botnet 5 | . 2 . . . 2 . . . . . . . . . . . . . 1 . . . Disrupt 2 | . . . . . 1 . . . . . . . . . . . . . . . . 1 Fabricators . | . . . . . . . . . . . . . . . . . . . . . . . Repair Stations . | . . . . . . . . . . . . . . . . . . . . . . . Recycling Units . | . . . . . . . . . . . . . . . . . . . . . . . Scanalyzers . | . . . . . . . . . . . . . . . . . . . . . . . Garrison Access . | . . . . . . . . . . . . . . . . . . . . . . . Data Cores Recovered 1 | . . . . . . . . 1 . . . . . . . . . . . . . . Used . | . . . . . . . . . . . . . . . . . . . . . . . Hacking Detections 38 | . 6 . . . 7 5 . 3 . . . 1 1 . . 1 . 7 4 . . 3 Full Trace Events . | . . . . . . . . . . . . . . . . . . . . . . . Feedback Events . | . . . . . . . . . . . . . . . . . . . . . . . Feedback Blocked . | . . . . . . . . . . . . . . . . . . . . . . . Robot Schematics Acquired 6 | . . . . . . . . . . . 6 . . . . . . . . . . . Robots Built . | . . . . . . . . . . . . . . . . . . . . . . . Authchips . | . . . . . . . . . . . . . . . . . . . . . . . Time . | . . . . . . . . . . . . . . . . . . . . . . . Total Robot Build Rating . | . . . . . . . . . . . . . . . . . . . . . . . Part Schematics Acquired 12 | . . . . . . . . 2 . . 10 . . . . . . . . . . . Parts Built 1 | . . . . . . . . . . . . . . . . . . . . . 1 . Authchips 1 | . . . . . . . . . . . . . . . . . . . . . 1 . Time 24 | . . . . . . . . . . . . . . . . . . . . . 24 . Total Part Build Rating 3 | . . . . . . . . . . . . . . . . . . . . . 3 . Part Studies Acquired 5 | . . . . . 1 1 . 3 . . . . . . . . . . . . . . Parts Repaired 4 | . . . . . 2 . . . . . . . . . . 1 . . . . . 1 Time 133 | . . . . . 58 . . . . . . . . . . 13 . . . . . 62 Parts Recycled . | . . . . . . . . . . . . . . . . . . . . . . . Recycled Matter . | . . . . . . . . . . . . . . . . . . . . . . . Retrieved Matter . | . . . . . . . . . . . . . . . . . . . . . . . Retrieved Components 6 | . . . . . . . . . . . . 3 . . . 3 . . . . . . Parts Scanalyzed 2 | . . . . . 1 . . 1 . . . . . . . . . . . . . . Part Schematics Acquired 1 | . . . . . . . . 1 . . . . . . . . . . . . . . Parts Damaged . | . . . . . . . . . . . . . . . . . . . . . . . Bothacking | -11 -10 -10 -10 -9 -8 -7 -7 -7 -7 -7 -7 -6 -6 -6 -6 -5 -5 -5 -4 -4 -4 -4 ------------ Run | Yrd Mat Min Exi Min Mat Fac Was Fac Low Low Dat Pro Fac DSF Gar Fac Was Fac Fac Was Fac Arm Used RIF Installer . | . . . . . . . . . . . . . . . . . . . . . . . Robots Hacked 1 | . . . . . . . . . . . . . . . . . . . 1 . . . Non-combat 1 | . . . . . . . . . . . . . . . . . . . 1 . . . Combat . | . . . . . . . . . . . . . . . . . . . . . . . Robot Hacks Applied 1 | . . . . . . . . . . . . . . . . . . . 1 . . . find_chute 1 | . . . . . . . . . . . . . . . . . . . 1 . . . Relay Couplers Released 4 | . . . . . . . . . . . . . . . . . . . 4 . . . Programmers 4 | . . . . . . . . . . . . . . . . . . . 4 . . . Fabnet Peak Effective % . | . . . . . . . . . . . . . . . . . . . . . . . Robots Rewired . | . . . . . . . . . . . . . . . . . . . . . . . Allies Hacked . | . . . . . . . . . . . . . . . . . . . . . . . Hacks Repelled . | . . . . . . . . . . . . . . . . . . . . . . . Allies | -11 -10 -10 -10 -9 -8 -7 -7 -7 -7 -7 -7 -6 -6 -6 -6 -5 -5 -5 -4 -4 -4 -4 -------- Run | Yrd Mat Min Exi Min Mat Fac Was Fac Low Low Dat Pro Fac DSF Gar Fac Was Fac Fac Was Fac Arm Total Allies 39 | . . . . . . . . . . . . 1 . . . . 20 . . 18 . . Largest Group 20 | . . . . . . . . . . . . . . . . . 20 20 . 18 7 . Highest-Rated Group 670 | . . . . . . . . . . . . . . . . . 670 670 . 638 242 . Highest-Rated Ally 50 | . . . . . . . . . . . . . . . . . 50 50 . 50 46 . Initial Warlord ECA Mod 10 | . . . . . . . . . . . . . . . 10 9 9 9 8 8 8 8 Total Orders . | . . . . . . . . . . . . . . . . . . . . . . . Ally Attacks 276 | . . . . . . . . . . . . . . . . . . 171 . 54 51 . Total Damage 8068 | . . . . . . . . . . . . . . . . . . 4612 . 2415 1041 . Kills 45 | . . . . . . . . . . . . . . . . . . 32 . 7 6 . Allies Corrupted . | . . . . . . . . . . . . . . . . . . . . . . . Allies Melted 2 | . . . . . . . . . . . . . . . . . . . . 1 1 . Intel | -11 -10 -10 -10 -9 -8 -7 -7 -7 -7 -7 -7 -6 -6 -6 -6 -5 -5 -5 -4 -4 -4 -4 ------- Run | Yrd Mat Min Exi Min Mat Fac Was Fac Low Low Dat Pro Fac DSF Gar Fac Was Fac Fac Was Fac Arm Active Infowar (turns) 9291 | . . . . . . . . 279 434 423 . . 86 404 136 1110 570 1232 1614 866 1379 758 Optics 608 | . . . . . . . . . . . . . . . . . . . 608 . . . Sensors 5461 | . . . . . . . . 279 434 423 . . . . . 191 570 692 997 714 562 599 Structural 1 | . . . . . . . . . . . . . . . . . . . . . 1 . Traps 517 | . . . . . . . . . . . . . 30 400 87 . . . . . . . T.N.C. 3118 | . . . . . . . . . . . . . 86 404 136 1110 570 812 . . . . Jamming 3359 | . . . . . . . . . . . . . . . . . . . 751 866 1379 363 Robot Analysis Total 1 | . 1 . . . . . . . . . . . . . . . . . . . . . Derelict Logs Recovered . | . . . . . . . . . . . . . . . . . . . . . . . Drone Launches . | . . . . . . . . . . . . . . . . . . . . . . . Drone Recoveries . | . . . . . . . . . . . . . . . . . . . . . . . Exploration | -11 -10 -10 -10 -9 -8 -7 -7 -7 -7 -7 -7 -6 -6 -6 -6 -5 -5 -5 -4 -4 -4 -4 ------------- Run | Yrd Mat Min Exi Min Mat Fac Was Fac Low Low Dat Pro Fac DSF Gar Fac Was Fac Fac Was Fac Arm Turns Passed 16177 | 53 671 50 224 192 2138 846 212 818 653 439 99 660 87 404 136 1110 570 1506 1623 866 1379 1441 Spaces Moved 10360 | 41 503 63 255 94 1306 573 205 712 373 364 89 520 77 192 95 715 338 995 957 547 706 640 Core 328 | 2 . . . . . . 104 30 . . . . . . 57 36 . . . . . 99 Treads 82 | . . . . . . . . . . . . . . . . . . . . . . 82 Legs . | . . . . . . . . . . . . . . . . . . . . . . . Wheels 9950 | 39 503 63 255 94 1306 573 101 682 373 364 89 520 77 192 38 679 338 995 957 547 706 459 Hover . | . . . . . . . . . . . . . . . . . . . . . . . Flight . | . . . . . . . . . . . . . . . . . . . . . . . Fastest Speed 50 | 50 80 80 80 95 90 100 50 50 105 95 105 105 105 120 50 50 105 105 95 95 95 50 Average Speed 108 | 93 98 80 86 95 103 112 74 93 106 108 105 107 109 133 107 99 115 117 111 111 114 146 Slowest Speed 355 | 100 100 80 95 95 125 120 100 113 120 155 105 120 120 200 185 140 120 125 200 125 185 355 Overloaded Moves . | . . . . . . . . . . . . . . . . . . . . . . . Propulsion Burnouts . | . . . . . . . . . . . . . . . . . . . . . . . Robots Hopped . | . . . . . . . . . . . . . . . . . . . . . . . Potential Cave-ins 3 | . . . . . . . . . . . . . . . . . . 3 . . . . Cave-ins Triggered . | . . . . . . . . . . . . . . . . . . . . . . . Exploration Rate (%) 45 | 3 81 20 62 18 92 15 88 12 51 46 75 47 3 93 22 19 96 35 22 96 15 33 Regions Visited 22 Branch Regions 8 Pre-discovered Areas 2 | . . . 1 . . . . . . . 1 . . . . . . . . . . . Known Exits Taken 7 | . . . . . 1 . . 1 1 1 . . 1 . . . . 1 . . 1 . Unknown Exits Taken 7 | 1 1 1 1 1 . . . . . . 1 1 . . . . . . . . . . Scrap Searched 18 | . . . . 1 . . . . 8 8 . 1 . . . . . . . . . . Spaces Dug 62 | . . . . . 4 . . 3 2 . . . . . . 2 . 7 8 10 14 12 Terrain Destroyed 523 | . . . . . 94 6 24 3 117 . . 17 . 75 . 9 . 24 42 27 47 38 Melee 7 | . . . . . 4 . . 3 . . . . . . . . . . . . . . Projectile 169 | . . . . . 1 2 . . 2 . . . . . . 5 . 24 42 25 43 25 AOE 342 | . . . . . 89 4 24 . 115 . . 17 . 75 . 4 . . . 2 . 12 Terrain Rammed . | . . . . . . . . . . . . . . . . . . . . . . . Walls Destroyed . | . . . . . . . . . . . . . . . . . . . . . . . Machines Disabled . | . . . . . . . . . . . . . . . . . . . . . . . Actions | -11 -10 -10 -10 -9 -8 -7 -7 -7 -7 -7 -7 -6 -6 -6 -6 -5 -5 -5 -4 -4 -4 -4 --------- Run | Yrd Mat Min Exi Min Mat Fac Was Fac Low Low Dat Pro Fac DSF Gar Fac Was Fac Fac Was Fac Arm Total 13544 | 52 598 62 258 166 1769 699 243 827 599 397 95 577 79 279 124 974 519 1209 1271 751 1033 963 Wait 1136 | . 29 . . 58 146 41 16 21 174 2 . 15 . 18 . 70 159 64 46 108 64 105 Move 10342 | 40 502 62 254 93 1305 573 204 711 372 363 88 519 76 191 94 715 337 995 957 546 705 640 Hop . | . . . . . . . . . . . . . . . . . . . . . . . Pick Up 179 | 2 6 . 2 . 33 5 3 19 6 14 . 5 . 4 2 21 4 11 11 6 11 14 Fast Attach 170 | 6 2 . . . 16 2 . 14 2 3 . . 1 2 3 24 1 3 38 9 25 19 Attach 75 | . . . . . 6 2 1 4 . . 4 1 2 7 2 6 1 4 5 5 12 13 Detach 66 | 1 . . . . 6 1 . 8 1 3 1 . . . 7 5 . 2 8 3 11 9 Swap 381 | . 8 . 1 . 55 17 4 10 14 5 1 7 . 20 . 31 6 32 55 15 56 44 Drop 253 | 2 9 . 1 . 43 13 2 11 9 3 1 1 . 3 10 16 8 23 31 15 31 21 Fire 909 | 1 42 . . 15 154 45 13 24 21 4 . 29 . 34 6 85 . 57 119 44 118 98 Melee 10 | . . . . . 5 . . 5 . . . . . . . . . . . . . . Ram 3 | . . . . . . . . . . . . . . . . 1 . 1 1 . . . Kick . | . . . . . . . . . . . . . . . . . . . . . . . Crush . | . . . . . . . . . . . . . . . . . . . . . . . Escape Stasis 17 | . . . . . . . . . . . . . . . . . . 17 . . . . Rewire 3 | . . . . . . . . . . . . . . . . . 3 . . . . . Trap . | . . . . . . . . . . . . . . . . . . . . . . . Miscellaneous . | . . . . . . . . . . . . . . . . . . . . . . . Route ------- -11/Scrapyard -10/Materials (discovered 3 exits: [*Mat x2] / [*Min]) -10/Mines -10/Exiles -9/Mines -8/Materials (discovered 3 exits: *Fac x3) -7/Factory -7/Waste -7/Factory (discovered 2 exits: *Fac / *Low) -7/Lower Caves -7/Lower Caves -7/Data Miner -6/Proximity Caves -6/Factory -6/DSF -6/Garrison -5/Factory -5/Waste -5/Factory (discovered 3 exits: *Fac / Upp x2) -4/Factory (discovered 5 exits: Upp x2 / Ext x2 / Arm) -4/Waste -4/Factory (discovered 3 exits: *Res / *Upp / *Arm) -4/Armory History --------- Turn | Location | Event 4 | -11/Scrapyard | Discovered new exit (range 16) 54 | -11/Scrapyard | Entered Materials 223 | -10/Materials | Discovered new exit (range 6) 304 | -10/Materials | Build established: Mutant 398 | -10/Materials | Discovered new exit (range 10) 457 | -10/Materials | Central database locked down 534 | -10/Materials | Discovered new exit (range 11) 725 | -10/Materials | Entered Mines 771 | -10/Mines | Deemed a non-threat by the Exiles lab entrance 772 | -10/Mines | Discovered new exit (range 5) 775 | -10/Mines | Entered Exiles 794 | -10/Exiles | Met 8R-AWN 808 | -10/Exiles | Met EX-HEX 840 | -10/Exiles | Met EX-DEC 844 | -10/Exiles | Learned location of Zion (-6) 860 | -10/Exiles | Met EX-BIN 869 | -10/Exiles | Aligned with FarCom system 870 | -10/Exiles | Given EX-Vault access code 889 | -10/Exiles | Opened EX-Vault 895 | -10/Exiles | Found Firepult 898 | -10/Exiles | Found Modified TNC 916 | -10/Exiles | Warned to stay clear of 0b10 Research branches 987 | -10/Exiles | Discovered new exit (range 12) 999 | -10/Exiles | Stole two prototypes: Modified TNC, Firepult 999 | -10/Exiles | Entered Mines 1000 | -9/Mines | Assembled infested the area 1065 | -9/Mines | Core integrity fell below 50% 1182 | -9/Mines | Discovered new exit (range 5) 1191 | -9/Mines | Entered Materials 1191 | -8/Materials | Evolved 4 slots: Propulsion x1, Utility x2, Weapon x1 1359 | -8/Materials | Repaired Particle Gun 1386 | -8/Materials | Repaired Wheel 1640 | -8/Materials | Garrison activated, responded to threat 1993 | -8/Materials | Build established: Scavenger-Tank 2010 | -8/Materials | Discovered new exit (range 9) 2155 | -8/Materials | Identified exit to Factory 2541 | -8/Materials | Discovered exit to Factory (range 7) 2791 | -8/Materials | First assault squad dispatched 2879 | -8/Materials | Destroyed 10 combat bots 2987 | -8/Materials | Sterilization system engaged 2987 | -8/Materials | Non-combat units ordered to evacuate 3045 | -8/Materials | Destroyed 8 combat bots 3087 | -8/Materials | Combat units ordered to evacuate 3195 | -8/Materials | Discovered exit to Factory (range 4) 3287 | -8/Materials | Ambient heat levels rising (+10) 3329 | -8/Materials | Entered Factory 3329 | -7/Factory | Evolved 2 slots: Utility x2 3331 | -7/Factory | FarCom data flow suspended 3729 | -7/Factory | First assault squad dispatched 3848 | -7/Factory | Garrison activated, responded to threat 4175 | -7/Factory | Sucked down chute 4175 | -7/Factory | Entered Waste 4190 | -7/Waste | EMP discharged 4208 | -7/Waste | System corruption reached 10% 4210 | -7/Waste | Spotted C-40 Crusher 4230 | -7/Waste | Build established: Tank 4232 | -7/Waste | Spotted C-40 Crusher 4232 | -7/Waste | Spotted C-40 Crusher 4232 | -7/Waste | Spotted C-40 Crusher 4282 | -7/Waste | Spotted C-40 Crusher 4290 | -7/Waste | EMP discharged 4295 | -7/Waste | Spotted C-40 Crusher 4309 | -7/Waste | Crushed by Compactor (1 part destroyed, 2 dropped) 4313 | -7/Waste | Crushed by Compactor (0 parts destroyed, 2 dropped) 4315 | -7/Waste | Crushed by Compactor (1 part destroyed, 2 dropped) 4346 | -7/Waste | Lost 3 parts (2n1w) 4380 | -7/Waste | Discovered new exit (range 12) 4387 | -7/Waste | Entered Factory 4637 | -7/Factory | Build established: Mutant 4906 | -7/Factory | Discovered new exit (range 15) 4914 | -7/Factory | Discovered new exit (range 4) 4923 | -7/Factory | Identified exit to Lower Caves 5205 | -7/Factory | Entered Lower Caves 5269 | -7/Lower Caves | Found DCF Scrap (14 items) 5365 | -7/Lower Caves | Encountered a Warlord checkpoint 5464 | -7/Lower Caves | Attracted the attention of an 0b10 checkpoint 5569 | -7/Lower Caves | Build established: Skirmisher 5660 | -7/Lower Caves | Found Imp. Powered Armor 5669 | -7/Lower Caves | Found Imp. Powered Armor 5851 | -7/Lower Caves | Discovered new exit (range 8) 5857 | -7/Lower Caves | Identified exit to Lower Caves 5858 | -7/Lower Caves | Entered another Lower Caves area 6134 | -7/Lower Caves | Encountered a Master Thief 6135 | -7/Lower Caves | Encountered a Master Thief 6136 | -7/Lower Caves | Encountered a Master Thief 6136 | -7/Lower Caves | Hvy. Deuterium Engine stolen by Master Thief 6137 | -7/Lower Caves | Encountered a Master Thief 6138 | -7/Lower Caves | Arm. Huge Wheel stolen by Master Thief 6142 | -7/Lower Caves | Cld. Particle Cannon stolen by Master Thief 6143 | -7/Lower Caves | Arm. Huge Wheel stolen by Master Thief 6236 | -7/Lower Caves | Discovered new exit (range 6) 6244 | -7/Lower Caves | Identified exit to Data Miner 6297 | -7/Lower Caves | Entered Data Miner 6299 | -7/Data Miner | Discovered new exit (range 6) 6319 | -7/Data Miner | Met Data Miner 6341 | -7/Data Miner | Learned location of Section 7 (-3) 6341 | -7/Data Miner | Acquired the access code to Warlord's prototype stash 6357 | -7/Data Miner | Received God Mode back door access code from Data Miner 6396 | -7/Data Miner | Entered Proximity Caves 6398 | -6/Proximity Caves | Greeted by an Infiltrator in a former 0b10 base 6478 | -6/Proximity Caves | Former 0b10 base attacked by MAIN.C 6490 | -6/Proximity Caves | Spotter reported a threat 6598 | -6/Proximity Caves | Lost 5 allies 6690 | -6/Proximity Caves | Build established: Gunner 6723 | -6/Proximity Caves | Spotter reported a threat 6778 | -6/Proximity Caves | Destroyed 12 combat bots 6796 | -6/Proximity Caves | 0b10 base defense nominally successful 6796 | -6/Proximity Caves | Lost 6 allies 6942 | -6/Proximity Caves | Attracted the attention of an 0b10 checkpoint 7048 | -6/Proximity Caves | Discovered new exit (range 8) 7056 | -6/Proximity Caves | Entered Factory 7056 | -6/Factory | Evolved 2 slots: Power x1, Utility x1 7143 | -6/Factory | Identified exit to DSF 7143 | -6/Factory | Entered DSF 7196 | -6/DSF | Additional patrols routed to DSF 7429 | -6/DSF | Sterilization system engaged 7449 | -6/DSF | Ambient heat levels rising (+10) 7455 | -6/DSF | Lost 6 parts (3u3w) 7464 | -6/DSF | Ambient heat levels rising (+10) 7479 | -6/DSF | Ambient heat levels rising (+10) 7487 | -6/DSF | Discovered new exit (range 11) 7492 | -6/DSF | Destroyed 12 combat bots 7494 | -6/DSF | Ambient heat levels rising (+10) 7509 | -6/DSF | Ambient heat levels rising (+10) 7524 | -6/DSF | Ambient heat levels rising (+10) 7539 | -6/DSF | Ambient heat levels rising (+10) 7547 | -6/DSF | Entered Garrison 7661 | -6/Garrison | Triggered checkpoint 7677 | -6/Garrison | Discovered new exit (range 12) 7683 | -6/Garrison | Entered Factory 7683 | -5/Factory | Evolved 2 slots: Power x1, Utility x1 7843 | -5/Factory | Build established: Mutant 7926 | -5/Factory | Repaired Com. Wheel+ 8407 | -5/Factory | Discovered new exit (range 9) 8430 | -5/Factory | Garrison activated, responded to threat 8454 | -5/Factory | Identified exit to Upper Caves 8468 | -5/Factory | System corruption reached 10% 8712 | -5/Factory | Destroyed 7 combat bots 8793 | -5/Factory | Sucked down chute 8793 | -5/Factory | Entered Waste 8794 | -5/Waste | Joined by Warlord forces that had cleared the area 8810 | -5/Waste | Build established: Scavenger-Skirmisher 8903 | -5/Waste | Found Prototype Protection 8903 | -5/Waste | Identified Centrium Heavy Armor Plating 9198 | -5/Waste | Found Gamma Bomb Array 9261 | -5/Waste | Discovered new exit (range 13) 9339 | -5/Waste | Identified exit to Factory 9363 | -5/Waste | Entered Factory 9363 | -5/Factory | Accompanied by 20 allies 9562 | -5/Factory | Garrison activated, responded to threat 9631 | -5/Factory | Lost 4 allies 9793 | -5/Factory | Garrison activated, responded to threat 9822 | -5/Factory | Lost 3 allies 9915 | -5/Factory | Build established: Scavenger-Gunner 9963 | -5/Factory | First assault squad dispatched 9983 | -5/Factory | Incoming assault squad redirected 10271 | -5/Factory | Found Hvy. Reactive Plating 10469 | -5/Factory | Cargo convoy interrupted 10739 | -5/Factory | Discovered new exit (range 10) 10865 | -5/Factory | Specialist reinforcements revealed to be Infiltrators 10866 | -5/Factory | Identified exit to Factory 10869 | -5/Factory | Entered another Factory area 10869 | -4/Factory | Evolved 2 slots: Utility x2 10879 | -4/Factory | Found Unknown Device 10879 | -4/Factory | Identified Quantum Capacitor 10916 | -4/Factory | Identified exit to Upper Caves 10916 | -4/Factory | Identified exit to Extension 10916 | -4/Factory | Identified exit to Armory 11358 | -4/Factory | Found Prototype Device 11358 | -4/Factory | Identified Adv. EM Shield 11364 | -4/Factory | Found Adv. EM Shield 12106 | -4/Factory | Lost 9 parts (2p2n2u3w) 12215 | -4/Factory | System corruption reached 10% 12492 | -4/Factory | Sucked down chute 12492 | -4/Factory | Entered Waste 12582 | -4/Waste | Build established: Scavenger-Tank 12608 | -4/Waste | Spotted C-40 Crusher 12640 | -4/Waste | Spotted C-40 Crusher 12660 | -4/Waste | Spotted C-40 Crusher 12665 | -4/Waste | Spotted C-40 Crusher 12672 | -4/Waste | Crushed by Compactor (1 part destroyed, 1 dropped) 12701 | -4/Waste | Destroyed C-40 Crusher 12701 | -4/Waste | Destroyed C-40 Crusher 12701 | -4/Waste | Spotted C-40 Crusher 12740 | -4/Waste | Destroyed C-40 Crusher 12747 | -4/Waste | Spotted C-40 Crusher 12849 | -4/Waste | Warlord forces began an assault 12868 | -4/Waste | Allies destroyed C-40 Crusher 12872 | -4/Waste | Allies destroyed C-40 Crusher 12878 | -4/Waste | Allies destroyed C-40 Crusher 12909 | -4/Waste | Lost 5 allies 13100 | -4/Waste | Discovered new exit (range 14) 13356 | -4/Waste | Identified exit to Factory 13358 | -4/Waste | Entered Factory 13358 | -4/Factory | Accompanied by 7 allies 13400 | -4/Factory | Discovered new exit (range 6) 13458 | -4/Factory | Identified exit to Research 13578 | -4/Factory | Lost 3 allies 13882 | -4/Factory | Discovered exit to Upper Caves (range 9) 14040 | -4/Factory | Build established: Scavenger-Gunner 14118 | -4/Factory | Discovered exit to Armory (range 12) 14250 | -4/Factory | Lost 6 parts (1p3n1u1w) 14486 | -4/Factory | Lost 3 parts (1n1u1w) 14571 | -4/Factory | Core integrity fell below 50% 14615 | -4/Factory | Fabricated Hvy. Armor Plating (x1) 14737 | -4/Factory | Entered Armory 14756 | -4/Armory | Found Adv. Powered Armor 14758 | -4/Armory | Found Adv. Powered Armor 14762 | -4/Armory | Found Adv. Powered Armor 14764 | -4/Armory | Found Adv. Powered Armor 14772 | -4/Armory | Found Adv. Powered Armor 14866 | -4/Armory | Build established: Scavenger-Tank 14911 | -4/Armory | Repaired Adv. Particle Charger 15031 | -4/Armory | Found Adv. Powered Armor 15863 | -4/Armory | Lost 3 parts (1n1u1w) 16036 | -4/Armory | Core integrity fell below 20% 16062 | -4/Armory | System corruption reached 30% 16110 | -4/Armory | Lost 3 parts (1u2w) 16178 | -4/Armory | Destroyed by P-70 Sage with High-powered Shock Rifle Last Messages --------------- 16151_ Slug penetrates Wall. 16151_ System corrupted: Hpw. Shock Rifle failed to cycle. 16153_ M2O